fUSD/lending_fUSD_20240821
["ID","MTS","AMOUNT","RATE_DAILY","PERIOD"]
[335440780,1724232672159,-214.53048855,0.00016438,2]
[335440781,1724232672168,-156.571307,0.00016438,2]
[335440782,1724232672178,-3807.57,0.00016438,2]
[335440783,1724232672187,-500.0,0.00016438,2]
[335440784,1724232672197,-3807.57,0.00016438,2]
[335440785,1724232672206,-3807.57,0.00016438,2]
[335440786,1724232672215,-500.0,0.00016438,2]
[335440787,1724232672225,-500.0,0.00016438,2]
[335440788,1724232672235,-3807.57,0.00016438,2]
[335440789,1724232672244,-634.4864762,0.00016438,2]
[335440790,1724232672254,-156.571307,0.00016438,2]
[335440791,1724232672264,-500.0,0.00016438,2]
[335440792,1724232672273,-3807.57,0.00016438,2]
[335440793,1724232672283,-3807.57,0.00016438,2]
[335440794,1724232672292,-500.0,0.00016438,2]
[335440795,1724232672301,-500.0,0.00016438,2]
[335440796,1724232672310,-3807.57,0.00016438,2]
[335440797,1724232672319,-211.731464,0.00016438,2]
[335440798,1724232672329,-3807.57,0.00016438,2]
[335440799,1724232672343,-3807.57,0.00016438,2]
[335440800,1724232672352,-500.0,0.00016438,2]
[335440801,1724232672361,-3807.57,0.00016438,2]
[335440802,1724232672372,-500.0,0.00016438,2]
[335440803,1724232672382,-3807.57,0.00016438,2]
[335440804,1724232672391,-500.0,0.00016438,2]
[335440805,1724232672400,-554.08,0.00016438,2]
[335440806,1724232672409,-554.08,0.00016438,2]
[335440807,1724232672421,-390.54,0.00016438,2]
[335440808,1724232672431,-554.08,0.00016438,2]
[335440809,1724232672440,-554.08,0.00016438,2]
[335440810,1724232672449,-1333.451265,0.00016438,2]
[335440811,1724232672458,-554.08,0.00016438,2]
[335440812,1724232672468,-554.08,0.00016438,2]
[335440813,1724232672477,-1333.451265,0.00016438,2]
[335440814,1724232672486,-500.0,0.00016438,2]
[335440815,1724232672496,-1333.451265,0.00016438,2]
[335440816,1724232672505,-554.08,0.00016438,2]
[335440817,1724232672515,-554.08,0.00016438,2]
[335440818,1724232672524,-1333.451265,0.00016438,2]
[335440819,1724232672534,-554.08,0.00016438,2]
[335440820,1724232672543,-234.57205473,0.00016438,2]
[335440821,1724232672669,-554.08,0.00016438,2]
[335440822,1724232672679,-554.08,0.00016438,2]
[335440823,1724232672688,-554.08,0.00016438,2]
[335440824,1724232672698,-554.08,0.00016438,2]
[335440825,1724232672708,-4197.54,0.00016438,2]
[335440826,1724232672717,-554.08,0.00016438,2]
[335440827,1724232672727,-4197.54,0.00016438,2]
[335440828,1724232672736,-554.08,0.00016438,2]
[335440829,1724232672746,-4197.54,0.00016438,2]
[335440830,1724232672756,-554.08,0.00016438,2]
[335440831,1724232672766,-4197.54,0.00016438,2]
[335440832,1724232672775,-4197.54,0.00016438,2]
[335440833,1724232672785,-500.0,0.00016438,2]
[335440834,1724232672794,-1333.451265,0.00016438,2]
[335440835,1724232672804,-554.08,0.00016438,2]
[335440836,1724232672814,-4197.54,0.00016438,2]
[335440837,1724232672823,-500.0,0.00016438,2]
[335440838,1724232672833,-1333.451265,0.00016438,2]
[335440839,1724232672843,-4197.54,0.00016438,2]
[335440840,1724232672852,-500.0,0.00016438,2]
[335440841,1724232672862,-554.08,0.00016438,2]
[335440842,1724232672874,-4197.54,0.00016438,2]
[335440843,1724232672884,-500.0,0.00016438,2]
[335440844,1724232672893,-1333.451265,0.00016438,2]
[335440845,1724232672903,-500.0,0.00016438,2]
[335440846,1724232672912,-500.0,0.00016438,2]
[335440847,1724232672922,-1333.451266,0.00016438,2]
[335440848,1724232672931,-500.0,0.00016438,2]
[335440849,1724232672940,-554.08,0.00016438,2]
[335440850,1724232672949,-4197.54,0.00016438,2]
[335440851,1724232672958,-500.0,0.00016438,2]
[335440852,1724232672968,-554.08,0.00016438,2]
[335440853,1724232672977,-500.0,0.00016438,2]
[335440854,1724232672987,-4197.54,0.00016438,2]
[335440855,1724232672996,-500.0,0.00016438,2]
[335440856,1724232673005,-554.08,0.00016438,2]
[335440857,1724232673015,-500.0,0.00016438,2]
[335440858,1724232673024,-4197.54,0.00016438,2]
[335440859,1724232673033,-500.0,0.00016438,2]
[335440860,1724232673042,-554.08,0.00016438,2]
[335440861,1724232673052,-301.8,0.00016438,2]
[335440862,1724232673062,-4197.54,0.00016438,2]
[335440863,1724232673072,-500.0,0.00016438,2]
[335440864,1724232673081,-554.08,0.00016438,2]
[335440865,1724232673091,-4197.54,0.00016438,2]
[335440866,1724232673100,-500.0,0.00016438,2]
[335440867,1724232673110,-554.21344716,0.00016438,2]
[335440868,1724232673121,-4197.54,0.00016438,2]
[335440869,1724232673131,-500.0,0.00016438,2]
[335440870,1724232673140,-4197.54,0.00016438,2]
[335440871,1724232673150,-4197.54,0.00016438,2]
[335440872,1724232673159,-500.0,0.00016438,2]
[335440873,1724232673169,-4197.54,0.00016438,2]
[335440874,1724232673179,-500.0,0.00016438,2]
[335440875,1724232673190,-4197.54,0.00016438,2]
[335440876,1724232673199,-500.0,0.00016438,2]
[335440877,1724232673209,-4197.54,0.00016438,2]
[335440878,1724232673219,-500.0,0.00016438,2]
[335440879,1724232673228,-500.0,0.00016438,2]
[335440880,1724232673238,-19134.73,0.00016438,2]
[335440881,1724232673247,-350.14088082,0.00016438,2]
[335440882,1724232673257,-286.273329,0.00016438,2]
[335440883,1724232673266,-19134.73,0.00016438,2]
[335440884,1724232673276,-19134.73,0.00016438,2]
[335440885,1724232673285,-286.273329,0.00016438,2]
[335440886,1724232673294,-19134.73,0.00016438,2]
[335440887,1724232673304,-19134.73,0.00016438,2]
[335440888,1724232673313,-19134.73,0.00016438,2]
[335440889,1724232673323,-286.273329,0.00016438,2]
[335440890,1724232673333,-19134.73,0.00016438,2]
[335440891,1724232673346,-19134.73,0.00016438,2]
[335440892,1724232673356,-286.273329,0.00016438,2]
[335440893,1724232673366,-19134.73,0.00016438,2]
[335440894,1724232673378,-19134.73,0.00016438,2]
[335440895,1724232673387,-100000.0,0.00016438,2]
[335440896,1724232673397,-19134.73,0.00016438,2]
[335440897,1724232673406,-168.22996714,0.00016438,2]
[335440898,1724232673421,-91767.6609824,0.00016438,2]
[335440899,1724232673430,-19134.73,0.00016438,2]
[335440900,1724232673439,-19134.73,0.00016438,2]
[335440901,1724232673448,-19134.73,0.00016438,2]
[335440902,1724232673457,-19134.73,0.00016438,2]
[335440903,1724232673467,-4970.44,0.00016438,2]
[335440904,1724232673476,-19134.73,0.00016438,2]
[335440905,1724232673486,-4970.44,0.00016438,2]
[335440906,1724232673496,-286.273329,0.00016438,2]
[335440907,1724232673506,-19134.73,0.00016438,2]
[335440908,1724232673516,-4970.44,0.00016438,2]
[335440909,1724232673526,-286.273329,0.00016438,2]
[335440910,1724232673535,-19134.73,0.00016438,2]
[335440911,1724232673545,-4970.44,0.00016438,2]
[335440912,1724232673555,-286.273329,0.00016438,2]
[335440913,1724232673564,-19134.73,0.00016438,2]
[335440914,1724232673573,-1092.91,0.00016438,2]
[335440915,1724232673583,-19134.73,0.00016438,2]
[335440916,1724232673592,-286.27332,0.00016438,2]
[335440917,1724232673602,-4970.44,0.00016438,2]
[335440918,1724232673611,-1092.91,0.00016438,2]
[335440919,1724232673623,-19134.73,0.00016438,2]
[335440920,1724232673632,-4970.44,0.00016438,2]
[335440921,1724232673641,-1092.91,0.00016438,2]
[335440922,1724232673651,-19134.73,0.00016438,2]
[335440923,1724232673660,-4970.44,0.00016438,2]
[335440924,1724232673670,-1092.91,0.00016438,2]
[335440925,1724232673679,-500.0,0.00016438,2]
[335440926,1724232673689,-4970.44,0.00016438,2]
[335440927,1724232673699,-500.0,0.00016438,2]
[335440928,1724232673708,-19134.73,0.00016438,2]
[335440929,1724232673718,-4970.44,0.00016438,2]
[335440930,1724232673727,-500.0,0.00016438,2]
[335440931,1724232673737,-1092.91,0.00016438,2]
[335440932,1724232673746,-4970.44,0.00016438,2]
[335440933,1724232673756,-19134.92990505,0.00016438,2]
[335440934,1724232673765,-4970.44,0.00016438,2]
[335440935,1724232673775,-1092.91,0.00016438,2]
[335440936,1724232673784,-500.0,0.00016438,2]
[335440937,1724232673793,-4970.44,0.00016438,2]
[335440938,1724232673803,-1092.91,0.00016438,2]
[335440939,1724232673813,-500.0,0.00016438,2]
[335440940,1724232673822,-500.0,0.00016438,2]
[335440941,1724232673831,-4970.44,0.00016438,2]
[335440942,1724232673841,-1092.91,0.00016438,2]
[335440943,1724232673850,-500.0,0.00016438,2]
[335440944,1724232673860,-4970.44,0.00016438,2]
[335440945,1724232673869,-1092.91,0.00016438,2]
[335440946,1724232673879,-545.07829988,0.00016438,2]
[335440947,1724232673888,-4970.44,0.00016438,2]
[335440948,1724232673898,-238.63268657,0.00016438,2]
[335440949,1724232673907,-1092.91,0.00016438,2]
[335440950,1724232673916,-1092.91,0.00016438,2]
[335440951,1724232673926,-1351.99,0.00016438,2]
[335440952,1724232673935,-4970.44,0.00016438,2]
[335440953,1724232673944,-1092.91,0.00016438,2]
[335440954,1724232673954,-1351.99,0.00016438,2]
[335440955,1724232673963,-1092.91,0.00016438,2]
[335440956,1724232673972,-1351.99,0.00016438,2]
[335440957,1724232673982,-1789.53,0.00016438,2]
[335440958,1724232673991,-4970.44,0.00016438,2]
[335440959,1724232674000,-1092.91,0.00016438,2]
[335440960,1724232674010,-1789.53,0.00016438,2]
[335440961,1724232674020,-500.0,0.00016438,2]
[335440962,1724232674029,-4970.44,0.00016438,2]
[335440963,1724232674038,-1351.99,0.00016438,2]
[335440964,1724232674048,-1092.91,0.00016438,2]
[335440965,1724232674057,-1789.53,0.00016438,2]
[335440966,1724232674066,-891.21,0.00016438,2]
[335440967,1724232674076,-4970.44,0.00016438,2]
[335440968,1724232674085,-1092.91,0.00016438,2]
[335440969,1724232674094,-1351.99,0.00016438,2]
[335440970,1724232674103,-1789.53,0.00016438,2]
[335440971,1724232674112,-891.21,0.00016438,2]
[335440972,1724232674123,-1092.91,0.00016438,2]
[335440973,1724232674132,-1351.99,0.00016438,2]
[335440974,1724232674141,-500.0,0.00016438,2]
[335440975,1724232674151,-1789.53,0.00016438,2]
[335440976,1724232674161,-500.0,0.00016438,2]
[335440977,1724232674171,-891.21,0.00016438,2]
[335440978,1724232674180,-1092.91,0.00016438,2]
[335440979,1724232674190,-1351.99,0.00016438,2]
[335440980,1724232674200,-500.0,0.00016438,2]
[335440981,1724232674210,-1789.53,0.00016438,2]
[335440982,1724232674220,-500.0,0.00016438,2]
[335440983,1724232674230,-1092.91,0.00016438,2]
[335440984,1724232674240,-891.21,0.00016438,2]
[335440985,1724232674249,-1351.99,0.00016438,2]
[335440986,1724232674259,-500.0,0.00016438,2]
[335440987,1724232674269,-1789.53,0.00016438,2]
[335440988,1724232674279,-511.92541569,0.00016438,2]
[335440989,1724232674288,-1092.91,0.00016438,2]
[335440990,1724232674298,-500.0,0.00016438,2]
[335440991,1724232674307,-891.21,0.00016438,2]
[335440992,1724232674317,-1789.53,0.00016438,2]
[335440993,1724232674327,-1092.91,0.00016438,2]
[335440994,1724232674338,-500.0,0.00016438,2]
[335440995,1724232674348,-1351.99,0.00016438,2]
[335440996,1724232674357,-891.21,0.00016438,2]
[335440997,1724232674367,-1789.53,0.00016438,2]
[335440998,1724232674378,-1092.91,0.00016438,2]
[335440999,1724232674388,-500.0,0.00016438,2]
[335441000,1724232674397,-1351.99,0.00016438,2]
[335441001,1724232674406,-1789.53,0.00016438,2]
[335441002,1724232674418,-891.21,0.00016438,2]
[335441003,1724232674428,-1092.91,0.00016438,2]
[335441004,1724232674437,-500.0,0.00016438,2]
[335441005,1724232674447,-1351.99,0.00016438,2]
[335441006,1724232674456,-1789.53,0.00016438,2]
[335441007,1724232674466,-1092.94316963,0.00016438,2]
[335441008,1724232674475,-500.0,0.00016438,2]
[335441009,1724232674484,-1789.53,0.00016438,2]
[335441010,1724232674494,-1351.99,0.00016438,2]
[335441011,1724232674503,-891.21,0.00016438,2]
[335441012,1724232674513,-525.23,0.00016438,2]
[335441013,1724232674523,-1789.53,0.00016438,2]
[335441014,1724232674532,-891.21,0.00016438,2]
[335441015,1724232674542,-1789.53,0.00016438,2]
[335441016,1724232674551,-1351.99,0.00016438,2]
[335441017,1724232674560,-500.0,0.00016438,2]
[335441018,1724232674569,-500.0,0.00016438,2]
[335441019,1724232674579,-891.21,0.00016438,2]
[335441020,1724232674588,-1789.53,0.00016438,2]
[335441021,1724232674598,-1351.99,0.00016438,2]
[335441022,1724232674607,-508.67365823,0.00016438,2]
[335441023,1724232674617,-891.21,0.00016438,2]
[335441024,1724232674627,-500.0,0.00016438,2]
[335441025,1724232674637,-1789.53,0.00016438,2]
[335441026,1724232674646,-891.21,0.00016438,2]
[335441027,1724232674655,-500.0,0.00016438,2]
[335441028,1724232674665,-1351.99,0.00016438,2]
[335441029,1724232674674,-500.0,0.00016438,2]
[335441030,1724232674684,-1789.53,0.00016438,2]
[335441031,1724232674693,-891.21,0.00016438,2]
[335441032,1724232674703,-1351.99,0.00016438,2]
[335441033,1724232674712,-500.0,0.00016438,2]
[335441034,1724232674721,-1789.53,0.00016438,2]
[335441035,1724232674731,-1351.99,0.00016438,2]
[335441036,1724232674740,-891.21,0.00016438,2]
[335441037,1724232674750,-500.0,0.00016438,2]
[335441038,1724232674759,-1789.53,0.00016438,2]
[335441039,1724232674769,-500.0,0.00016438,2]
[335441040,1724232674779,-891.21,0.00016438,2]
[335441041,1724232674788,-1789.53,0.00016438,2]
[335441042,1724232674798,-500.0,0.00016438,2]
[335441043,1724232674807,-891.21,0.00016438,2]
[335441044,1724232674816,-1789.53,0.00016438,2]
[335441045,1724232674826,-500.0,0.00016438,2]
[335441046,1724232674835,-500.0,0.00016438,2]
[335441047,1724232674844,-891.21,0.00016438,2]
[335441048,1724232674854,-500.0,0.00016438,2]
[335441049,1724232674863,-1789.53,0.00016438,2]
[335441050,1724232674874,-500.0,0.00016438,2]
[335441051,1724232674884,-891.21,0.00016438,2]
[335441052,1724232674893,-500.0,0.00016438,2]
[335441053,1724232674902,-1789.53,0.00016438,2]
[335441054,1724232674912,-500.0,0.00016438,2]
[335441055,1724232674921,-891.21,0.00016438,2]
[335441056,1724232674931,-151.0,0.00016438,2]
[335441057,1724232674941,-500.0,0.00016438,2]
[335441058,1724232674950,-500.0,0.00016438,2]
[335441059,1724232674959,-1789.75,0.00016438,2]
[335441060,1724232674968,-891.21,0.00016438,2]
[335441061,1724232674978,-151.0,0.00016438,2]
[335441062,1724232674988,-500.0,0.00016438,2]
[335441063,1724232674997,-500.0,0.00016438,2]
[335441064,1724232675007,-891.21,0.00016438,2]
[335441065,1724232675016,-322.4634361,0.00016438,2]
[335441066,1724232675026,-500.0,0.00016438,2]
[335441067,1724232675035,-999.41,0.00016438,2]
[335441068,1724232675044,-891.21,0.00016438,2]
[335441069,1724232675053,-151.0,0.00016438,2]
[335441070,1724232675063,-500.0,0.00016438,2]
[335441071,1724232675072,-891.21,0.00016438,2]
[335441072,1724232675081,-999.41,0.00016438,2]
[335441073,1724232675091,-891.42,0.00016438,2]
[335441074,1724232675100,-151.0,0.00016438,2]
[335441075,1724232675109,-500.0,0.00016438,2]
[335441076,1724232675119,-999.41,0.00016438,2]
[335441077,1724232675130,-500.0,0.00016438,2]
[335441078,1724232675139,-999.41,0.00016438,2]
[335441079,1724232675149,-500.0,0.00016438,2]
[335441080,1724232675159,-500.0,0.00016438,2]
[335441081,1724232675170,-999.41,0.00016438,2]
[335441082,1724232675180,-500.0,0.00016438,2]
[335441083,1724232675190,-999.41,0.00016438,2]
[335441084,1724232675199,-500.0,0.00016438,2]
[335441085,1724232675209,-500.0,0.00016438,2]
[335441086,1724232675219,-500.0,0.00016438,2]
[335441087,1724232675228,-500.0,0.00016438,2]
[335441088,1724232675238,-999.41,0.00016438,2]
[335441089,1724232675248,-500.0,0.00016438,2]
[335441090,1724232675258,-500.0,0.00016438,2]
[335441091,1724232675268,-999.41,0.00016438,2]
[335441092,1724232675278,-500.0,0.00016438,2]
[335441093,1724232675288,-500.0,0.00016438,2]
[335441094,1724232675297,-500.0,0.00016438,2]
[335441095,1724232675307,-999.41,0.00016438,2]
[335441096,1724232675317,-500.0,0.00016438,2]
[335441097,1724232675327,-500.0,0.00016438,2]
[335441098,1724232675338,-999.41,0.00016438,2]
[335441099,1724232675348,-500.0,0.00016438,2]
[335441100,1724232675357,-500.0,0.00016438,2]
[335441101,1724232675367,-999.41,0.00016438,2]
[335441102,1724232675378,-500.0,0.00016438,2]
[335441103,1724232675508,-500.0,0.00016438,2]
[335441104,1724232675518,-999.41,0.00016438,2]
[335441105,1724232675528,-324.51876593,0.00016438,2]
[335441106,1724232675538,-500.0,0.00016438,2]
[335441107,1724232675547,-999.41,0.00016438,2]
[335441108,1724232675559,-500.0,0.00016438,2]
[335441109,1724232675568,-999.41,0.00016438,2]
[335441110,1724232675578,-500.0,0.00016438,2]
[335441111,1724232675588,-999.41,0.00016438,2]
[335441112,1724232675598,-42768.0,0.00016438,2]
[335441113,1724232675607,-71719.0,0.00016438,2]
[335441114,1724232675617,-3739.0,0.00016438,2]
[335441115,1724232675629,-9416.0,0.00016438,2]
[335441116,1724232675639,-213.959549,0.00016438,2]
[335441117,1724232675650,-213.959549,0.00016438,2]
[335441118,1724232675661,-213.959549,0.00016438,2]
[335441119,1724232675670,-213.959549,0.00016438,2]
[335441120,1724232675680,-213.959549,0.00016438,2]
[335441121,1724232675689,-213.959554,0.00016438,2]
[335441122,1724232675700,-433.39797345,0.00016456,5]
[335441123,1724232675709,-500.0,0.00016456,5]
[335441124,1724232675719,-500.0,0.00016456,5]
[335441125,1724232675728,-500.0,0.00016456,5]
[335441126,1724232675738,-500.0,0.00016456,5]
[335441127,1724232675747,-464.98529042,0.00016456,5]
[335441128,1724232675756,-500.0,0.00016456,5]
[335441129,1724232675766,-1951.41,0.00016456,5]
[335441130,1724232675776,-524.72,0.00016456,5]
[335441131,1724232675785,-500.0,0.00016456,5]
[335441132,1724232675795,-1734.43,0.00016456,5]
[335441133,1724232675805,-472.96,0.00016456,5]
[335441134,1724232675815,-624.78,0.00016456,5]
[335441135,1724232675824,-2729.02694444,0.00016458,4]
[335441136,1724232675834,-500.0,0.00016459,5]
[335441137,1724232675843,-500.0,0.00016459,5]
[335441138,1724232675853,-500.0,0.00016459,5]
[335441139,1724232675863,-500.0,0.00016459,5]
[335441140,1724232675873,-604.82,0.00016459,5]
[335441141,1724232675884,-915.52,0.00016459,5]
[335441142,1724232675893,-517.76,0.00016459,5]
[335441143,1724232675903,-917.21,0.00016459,5]
[335441144,1724232675912,-857.59,0.00016459,5]
[335441145,1724232675922,-534.25,0.00016459,5]
[335441146,1724232675931,-6827.97,0.00016459,5]
[335441147,1724232675941,-1354.9,0.00016459,5]
[335441148,1724232675951,-665.84,0.00016459,5]
[335441149,1724232675961,-6610.57,0.00016459,5]
[335441150,1724232675971,-500.0,0.00016459,5]
[335441151,1724232675980,-3975.35,0.00016459,5]
[335441152,1724232675990,-1100.32,0.00016459,5]
[335441153,1724232676001,-6944.34,0.00016459,5]
[335441154,1724232676012,-1363.57,0.00016459,5]
[335441155,1724232676022,-500.0,0.00016459,5]
[335441156,1724232676032,-4841.28,0.00016459,5]
[335441157,1724232676043,-1956.36,0.00016459,5]
[335441158,1724232676053,-2971.62,0.00016459,5]
[335441159,1724232676062,-1729.02,0.00016459,5]
[335441160,1724232676072,-5015.04884796,0.0001646,2]
[335441161,1724232676082,-306.1396801,0.0001646,5]
[335441162,1724232676091,-500.0,0.0001646,5]
[335441163,1724232676100,-503.0571057,0.0001646,5]
[335441164,1724232676110,-528.68,0.0001646,5]
[335441165,1724232676119,-500.0,0.0001646,5]
[335441166,1724232676130,-3102.37,0.0001646,5]
[335441167,1724232676140,-1116.84,0.0001646,5]
[335441168,1724232676150,-500.0,0.0001646,5]
[335441169,1724232676159,-682.85,0.0001646,5]
[335441170,1724232676168,-5406.57,0.0001646,5]
[335441171,1724232676178,-730.09,0.0001646,5]
[335441172,1724232676188,-500.0,0.0001646,5]
[335441173,1724232676198,-500.0,0.0001646,5]
[335441174,1724232676208,-603.83,0.0001646,5]
[335441175,1724232676218,-706.13,0.0001646,5]
[335441176,1724232676228,-1085.61,0.0001646,5]
[335441177,1724232676237,-1342.3,0.0001646,5]
[335441178,1724232676247,-3807.57,0.0001646,5]
[335441179,1724232676256,-1351.99,0.0001646,5]
[335441180,1724232676266,-500.0,0.00016461,5]
[335441181,1724232676275,-500.0,0.00016461,5]
[335441182,1724232676285,-500.0,0.00016461,5]
[335441183,1724232676295,-500.0,0.00016461,5]
[335441184,1724232676305,-500.0,0.00016461,5]
[335441185,1724232676315,-501.76,0.00016461,5]
[335441186,1724232676324,-1000.0,0.00016461,2]
[335441187,1724232676336,-836.09,0.00016461,5]
[335441188,1724232676347,-500.0,0.00016461,5]
[335441189,1724232676356,-728.99,0.00016461,5]
[335441190,1724232676366,-625.11,0.00016461,5]
[335441191,1724232676380,-1363.92,0.00016461,5]
[335441192,1724232676390,-1365.25,0.00016461,5]
[335441193,1724232676401,-1365.25,0.00016461,5]
[335441194,1724232676413,-1365.25,0.00016461,5]
[335441195,1724232676423,-1365.25,0.00016461,5]
[335441196,1724232676434,-1365.27,0.00016461,5]
[335441197,1724232676444,-517.31,0.00016461,5]
[335441198,1724232676454,-517.31,0.00016461,5]
[335441199,1724232676464,-517.31,0.00016461,5]
[335441200,1724232676474,-517.31,0.00016461,5]
[335441201,1724232676484,-517.40419614,0.00016461,5]
[335441202,1724232676493,-1448.82,0.00016461,5]
[335441203,1724232676503,-1448.82,0.00016461,5]
[335441204,1724232676513,-1448.82,0.00016461,5]
[335441205,1724232676522,-1448.82,0.00016461,5]
[335441206,1724232676532,-1449.02602636,0.00016461,5]
[335441207,1724232676541,-500.0,0.00016461,5]
[335441208,1724232676551,-585.39022495,0.00016461,5]
[335441209,1724232676561,-261.49656855,0.00016461,5]
[335441210,1724232676571,-1357.32,0.00016461,5]
[335441211,1724232676581,-1357.32,0.00016461,5]
[335441212,1724232676591,-1357.32,0.00016461,5]
[335441213,1724232676601,-1357.32,0.00016461,5]
[335441214,1724232676611,-1357.45654936,0.00016461,5]
[335441215,1724232676621,-4197.54,0.00016461,5]
[335441216,1724232676632,-4197.54,0.00016461,5]
[335441217,1724232676642,-4197.54,0.00016461,5]
[335441218,1724232676651,-4197.54,0.00016461,5]
[335441219,1724232676661,-4197.60140017,0.00016461,5]
[335441220,1724232676671,-4970.44,0.00016461,5]
[335441221,1724232676681,-4970.44,0.00016461,5]
[335441222,1724232676691,-4970.44,0.00016461,5]
[335441223,1724232676700,-4970.44,0.00016461,5]
[335441224,1724232676709,-4970.50477487,0.00016461,5]
[335441225,1724232676719,-75000.0,0.00016462,4]
[335441226,1724232676728,-500.0,0.00016462,5]
[335441227,1724232676738,-500.0,0.00016462,5]
[335441228,1724232676747,-500.0,0.00016462,5]
[335441229,1724232676757,-500.0,0.00016462,5]
[335441230,1724232676766,-500.0,0.00016462,5]
[335441231,1724232676775,-500.0,0.00016462,5]
[335441232,1724232676786,-1951.41,0.00016462,5]
[335441233,1724232676795,-524.72,0.00016462,5]
[335441234,1724232676805,-500.0,0.00016462,5]
[335441235,1724232676815,-1734.43,0.00016462,5]
[335441236,1724232676824,-624.78,0.00016462,5]
[335441237,1724232676834,-500.0,0.00016463,5]
[335441238,1724232676843,-295.87438685,0.00016463,5]
[335441239,1724232676852,-500.0,0.00016463,5]
[335441240,1724232676862,-500.0,0.00016463,5]
[335441241,1724232676872,-500.0,0.00016463,5]
[335441242,1724232676882,-604.82,0.00016463,5]
[335441243,1724232676892,-528.68,0.00016463,5]
[335441244,1724232676902,-500.0,0.00016463,5]
[335441245,1724232676912,-3102.37,0.00016463,5]
[335441246,1724232676921,-915.52,0.00016463,5]
[335441247,1724232676931,-517.76,0.00016463,5]
[335441248,1724232676941,-917.21,0.00016463,5]
[335441249,1724232676950,-857.59,0.00016463,5]
[335441250,1724232676960,-534.25,0.00016463,5]
[335441251,1724232676969,-6827.97,0.00016463,5]
[335441252,1724232676979,-1116.84,0.00016463,5]
[335441253,1724232676988,-1354.9,0.00016463,5]
[335441254,1724232676998,-479.08012164,0.00016463,5]
[335441255,1724232677008,-665.84,0.00016463,5]
[335441256,1724232677018,-6610.57,0.00016463,5]
[335441257,1724232677027,-500.0,0.00016463,5]
[335441258,1724232677037,-3975.35,0.00016463,5]
[335441259,1724232677047,-1100.32,0.00016463,5]
[335441260,1724232677057,-682.85,0.00016463,5]
[335441261,1724232677067,-6944.34,0.00016463,5]
[335441262,1724232677077,-1363.57,0.00016463,5]
[335441263,1724232677086,-5406.57,0.00016463,5]
[335441264,1724232677096,-500.0,0.00016463,5]
[335441265,1724232677106,-4841.28,0.00016463,5]
[335441266,1724232677115,-1956.36,0.00016463,5]
[335441267,1724232677127,-730.09,0.00016463,5]
[335441268,1724232677137,-500.0,0.00016463,5]
[335441269,1724232677147,-500.0,0.00016463,5]
[335441270,1724232677156,-2971.62,0.00016463,5]
[335441271,1724232677166,-603.83,0.00016463,5]
[335441272,1724232677176,-1729.02,0.00016463,5]
[335441273,1724232677186,-706.13,0.00016463,5]
[335441274,1724232677196,-1085.61,0.00016463,5]
[335441275,1724232677205,-1342.3,0.00016463,5]
[335441276,1724232677215,-3807.57,0.00016463,5]
[335441277,1724232677225,-1351.99,0.00016463,5]
[335441278,1724232677234,-566.33,0.00016464,5]
[335441279,1724232677243,-500.0,0.00016464,5]